Cogmind - Beta 13 @@@ ROGUE MODE // 2024.04.13 @ 16:32:23 Player: SovietPaperclip Result: Self-destructed Performance ------------- Evolutions (3) 1500 Regions Visited (5) 1000 Robots Destroyed (84) 420 Value Destroyed (2395) 2395 Prototype IDs (9) 180 Alien Tech Used (0) 0 Bonus (0) 0 TOTAL SCORE: 5495 Bonus ------- None Cogmind --------- Core Integrity 648/700 Matter 229/300 Energy 460/460 System Corruption 4% Temperature Cool (0) Movement Treading (160) Location -7/Factory Parts ------- > --- POWER (2) -------- Heavy Ion Engine Heavy Ion Engine > --- PROPULSION (4) --- Light Treads Improved Treads Improved Treads Medium Treads > --- UTILITY (4) ------ Machine Analyzer > --- WEAPON (3) ------- Plasma Cannon Plasma Cannon Scatter Rocket Array > --- INVENTORY (5) ---- Scrap Engine Hardened Heavy Armor Plating Peak State ------------ > --- POWER ------------ Heavy Ion Engine Heavy Ion Engine > --- PROPULSION ------- Improved Treads Improved Treads Medium Treads Medium Treads > --- UTILITY ---------- Improved Cooling System Huge Storage Unit Machine Analyzer Improved Light Armor Plating > --- WEAPON ----------- Plasma Cannon Plasma Cannon Plasma Cannon > --- INVENTORY -------- Improved Deuterium Engine Light Treads Improved Treads Scrap Engine High-capacity Matter Pod Hardened Heavy Armor Plating Improved Light Armor Plating Improved Light Armor Plating Improved Light Armor Plating System Shield Authchip [Propulsion] Authchip [Armor] Authchip [Armor] Authchip [Armor] Authchip [Weapon] Long-range Tractor Beam Drone Bay Plasma Cannon Plasma Cannon Cooled Particle Cannon Scatter Rocket Array Remote Datajack Impact Mace [Rating: 51] Favorites ----------- Power Heavy Ion Engine Engine Heavy Ion Engine Propulsion Light Treads Treads Light Treads Flight Unit Improved Flight Unit Utility Huge Storage Unit Device Improved Cooling System Storage Huge Storage Unit Processor Machine Analyzer Hackware System Shield Protection Improved Light Armor Plating Weapon Advanced Beam Cannon Energy Gun Improved Medium Laser Energy Cannon Advanced Beam Cannon Ballistic Gun Assault Rifle Launcher Rocket Launcher Impact Weapon Impact Mace Build | -11 -10 -9 -9 -9 -7 ------- Run | Yrd Mat Mat Sto Rec Fac Slots Evolved 6 | . . 2 . . 4 Power 1 | . . . . . 1 Propulsion 2 | . . 1 . . 1 Utility 2 | . . . . . 2 Weapon 1 | . . 1 . . . Parts Attached 79 | 6 6 25 13 1 28 Power 6 | 1 . 3 . . 2 Engine 6 | 1 . 3 . . 2 Core . | . . . . . . Reactor . | . . . . . . Propulsion 17 | 2 . 6 3 . 6 Treads 16 | 2 . 5 3 . 6 Leg . | . . . . . . Wheel . | . . . . . . Hover . | . . . . . . Flight 1 | . . 1 . . . Utility 18 | 1 2 2 2 . 11 Device 3 | . . . 1 . 2 Storage 2 | 1 1 . . . . Processor 1 | . . . . . 1 Hackware 3 | . . . . . 3 Protection 9 | . 1 2 1 . 5 Artifact . | . . . . . . Weapon 38 | 2 4 14 8 1 9 Energy Gun 1 | . . 1 . . . Energy Cannon 13 | . . . 6 1 6 Ballistic Gun 15 | 2 2 11 . . . Ballistic Cannon . | . . . . . . Launcher 7 | . 2 2 2 . 1 Special Weapon . | . . . . . . Impact Weapon 2 | . . . . . 2 Slashing Weapon . | . . . . . . Piercing Weapon . | . . . . . . Special Melee Weapon . | . . . . . . Unidentified Prototypes 9 | . . 5 2 . 2 Corrupted Parts 1 | . . . . . 1 System Corruption 4 | . . . . . 4 Parts Lost 6 | . . 4 . . 2 Power 1 | . . 1 . . . Propulsion 1 | . . 1 . . . Utility 4 | . . 2 . . 2 Weapon . | . . . . . . Highest Loss Streak 1 | . . 1 . . 1 To Critical Strikes . | . . . . . . Average Slot Usage (%) 98 | . 98 99 99 99 96 Engine 12 | . 14 11 11 11 14 Treads 31 | . 28 32 33 33 30 Storage 10 | . 14 11 11 11 7 Processor 1 | . . . . . 7 Protection 10 | . 12 11 10 11 7 Energy Cannon 13 | . . . 29 32 19 Ballistic Gun 14 | . 27 31 2 . . Naked Turns . | . . . . . . Heaviest Build 122 | 13 92 100 105 107 122 Greatest Support 102 | 40 40 60 69 69 102 Greatest Overweight (x) 2 | . 2 1 1 1 1 Average Overweight (x) 1 | . 1 1 1 1 1 Largest Inventory Capacity 25 | 8 25 25 25 25 25 Average Capacity 24 | 6 23 25 25 25 24 Most Carried 25 | 3 9 25 25 25 25 Average Carried 20 | 1 6 17 24 24 23 Final Capacity 25 | 8 25 25 25 25 5 Final Carried 25 | 2 9 25 24 25 4 Class Distribution -------------------- 48% | Tank 29% | Scavenger-Tank 19% | Mutant Dominant Class ---------------- Mutant | -10/Materials Scavenger-Tank | -9/Materials Tank | -9/Storage Tank | -9/Recycling Tank | -7/Factory Resources | -11 -10 -9 -9 -9 -7 ----------- Run | Yrd Mat Mat Sto Rec Fac Matter Collected 2210 | 219 154 1061 468 . 308 Remotely . | . . . . . . Salvage Created 3280 | . 324 1343 720 215 678 Parts 188 | . 30 75 42 14 27 Haulers Intercepted 8 | . . 5 2 . 1 Recyclers Shooed . | . . . . . . Parts Field Recycled . | . . . . . . Retrieved Matter . | . . . . . . Parts Self-Destructed . | . . . . . . Prevented . | . . . . . . Kills | -11 -10 -9 -9 -9 -7 ------- Run | Yrd Mat Mat Sto Rec Fac Combat Hostiles Destroyed 60 | . 8 23 15 4 10 Melee 2 | . . . . . 2 Guns 26 | . 5 21 . . . Cannons 23 | . . . 12 4 7 AOE 8 | . 3 2 3 . . Classes Destroyed 12 | . 7 3 . . 2 Worker 3 | . 2 . . . 1 Tunneler 1 | . 1 . . . . Hauler 8 | . . 5 2 . 1 Recycler 3 | . 1 1 . . 1 Operator 4 | . 1 2 . . 1 Watcher 5 | . 2 2 1 . . Swarmer 13 | . 6 4 3 . . Grunt 22 | . 2 10 4 . 6 Brawler 1 | . . 1 . . . Sentry 21 | . . 8 8 4 1 Hunter 1 | . . . . . 1 Programmer 2 | . . . . . 2 Best Kill Streak 4 | . 4 4 4 1 2 Combat Bots Only 4 | . 3 4 4 1 2 Max Kills in Single Turn 2 | . 2 2 2 1 1 Gunslinging . | . . . . . . Exploded 2 | . 2 1 2 . . Melee 1 | . . . . . 1 Uniques/NPCs Destroyed . | . . . . . . Combat | -11 -10 -9 -9 -9 -7 -------- Run | Yrd Mat Mat Sto Rec Fac Hostile Shots Fired 247 | . 26 91 32 18 80 Missed 66 | . 8 24 7 5 22 Damage Taken 2474 | . 162 844 304 190 974 Core 214 | . 16 108 12 26 52 Absorbed by Shields . | . . . . . . Core Remaining (%) 85 | 100 93 . . 63 . Volleys Fired 178 | . 28 82 27 9 32 Largest 3 | . 2 3 3 3 3 Hottest 240 | . 50 76 196 196 240 Shots Fired 462 | . 56 232 71 27 76 Gun 282 | . 52 230 . . . Cannon 171 | . . . 69 27 75 Launcher 9 | . 4 2 2 . 1 Special . | . . . . . . Kinetic 282 | . 52 230 . . . Thermal 171 | . . . 69 27 75 Explosive 9 | . 4 2 2 . 1 Electromagnetic . | . . . . . . Robot Hit Streak 47 | . 8 46 47 16 14 Robot Miss Streak 7 | . 2 7 3 1 4 Penetration Max . | . . . . . . Secondary Targets 4 | . . 4 . . . Max Gunslinging Chain 1 | . . 1 . . . Shots Hit Robots 296 | . 31 157 38 18 52 Core Hits 115 | . 20 52 18 4 21 Critical Kills . | . . . . . . Critical Parts Destroyed 2 | . 1 . . . 1 Critical Strikes 2 | . 1 . . . 1 Destroy 1 | . 1 . . . . Smash 1 | . . . . . 1 Melee Attacks 7 | . . . . . 7 Impact 7 | . . . . . 7 Slashing . | . . . . . . Piercing . | . . . . . . Sneak Attacks 1 | . . . . . 1 Combat Hostiles . | . . . . . . Follow-up Attacks . | . . . . . . Damage Inflicted 5963 | . 602 2382 1093 389 1497 Guns 2623 | . 373 2250 . . . Cannons 2401 | . . . 825 389 1187 Explosions 694 | . 229 132 268 . 65 Melee 227 | . . . . . 227 Ramming 18 | . . . . . 18 Kinetic 2623 | . 373 2250 . . . Thermal 2469 | . 68 . 825 389 1187 Explosive 626 | . 161 132 268 . 65 Electromagnetic . | . . . . . . Impact 227 | . . . . . 227 Slashing . | . . . . . . Piercing . | . . . . . . Highest Corruption 4 | . . . . . 4 Average Corruption 4 | . . . . . 4 Corruption Purged . | . . . . . . Corruption Blocked . | . . . . . . Effects 5 | . . . . . 5 Message Errors 2 | . . . . . 2 Matter Fused 3 | . . . . . 3 Overload Shots . | . . . . . . Overflow Damage 221 | . 28 . . . 193 Projectiles 49 | . . . . . 49 Explosions 38 | . 28 . . . 10 Melee 134 | . . . . . 134 Knockbacks . | . . . . . . Impact . | . . . . . . Kinetic . | . . . . . . Secondary . | . . . . . . Self-Inflicted Damage 205 | . . . . . 205 Shots 8 | . . . . . 8 Rammed 3 | . . . . . 3 Targets Rammed 3 | . . . . . 3 Kicked . | . . . . . . Crushed . | . . . . . . Highest Temperature 625 | . 12 79 431 423 625 Average Temperature 122 | . 5 22 152 175 197 Received Heat Transfer 906 | . 42 303 135 90 336 Effects 20 | . . . 3 3 14 Shutdowns 4 | . . . . . 4 Energy Bleed 2 | . . . 1 1 . Interference 3 | . . . 1 1 1 Matter Decay 2 | . . . 1 . 1 Short Circuit 2 | . . . . 1 1 Damage (minor) 1 | . . . . . 1 Damage (major) 6 | . . . . . 6 Siege Activations . | . . . . . . Robots Corrupted . | . . . . . . Combat Hostiles . | . . . . . . Parts Fried . | . . . . . . Impact Corruptions 3 | . . . . . 3 Robots Melted 2 | . . . 1 . 1 Combat Hostiles 1 | . . . . . 1 Parts Melted 7 | . . . . 3 4 Heat Transferred 4178 | . 50 . 1443 666 2019 Parts Sabotaged . | . . . . . . Parts Stolen . | . . . . . . Parts Stripped . | . . . . . . Power Chain Reactions . | . . . . . . Alert | -11 -10 -9 -9 -9 -7 ------- Run | Yrd Mat Mat Sto Rec Fac Peak Influence 342 | . 195 218 342 152 127 Initial 113 | . . 42 68 113 50 Average 88 | . 88 95 190 62 45 Maximum Alert Level 1 | . . 1 1 . . Low Security (%) 92 | 100 100 96 51 100 100 Level 1 7 | . . 3 48 . . Level 2 . | . . . . . . Level 3 . | . . . . . . Level 4 . | . . . . . . Level 5 . | . . . . . . High Security . | . . . . . . Max Security . | . . . . . . Squads Dispatched 11 | . 1 4 . . 6 Investigation 4 | . . 2 . . 2 Extermination 2 | . . . . . 2 Reinforcement 5 | . 1 2 . . 2 Assault . | . . . . . . Garrison . | . . . . . . Intercept . | . . . . . . Searches Triggered . | . . . . . . Construction Impeded . | . . . . . . Haulers Reinforced 1 | . . . . . 1 Active Scanning Responses . | . . . . . . Cargo Convoy Interrupts . | . . . . . . Stealth | -11 -10 -9 -9 -9 -7 --------- Run | Yrd Mat Mat Sto Rec Fac Distress Signals 9 | . 3 3 3 . . Communications Jammed . | . . . . . . Distress Signals . | . . . . . . Times Spotted 94 | . 14 41 16 4 19 Peak Tracking Total 5 | . 5 4 4 1 3 Tactical Retreats 1 | . . . . . 1 Traps | -11 -10 -9 -9 -9 -7 ------- Run | Yrd Mat Mat Sto Rec Fac Traps Triggered 2 | . . 1 . . 1 Indirectly . | . . . . . . Trap Hack Attempts . | . . . . . . Triggered . | . . . . . . Disarmed . | . . . . . . Reprogrammed . | . . . . . . Reused . | . . . . . . Traps Extracted . | . . . . . . Installed . | . . . . . . Triggered . | . . . . . . Machines | -11 -10 -9 -9 -9 -7 ---------- Run | Yrd Mat Mat Sto Rec Fac Machines Disabled 6 | . 1 2 1 1 1 Max in Single Turn 1 | . 1 1 1 1 1 Machines Repaired . | . . . . . . Machines Dismantled . | . . . . . . Machines Sabotaged . | . . . . . . Overloaded Fab Kills . | . . . . . . Hacking | -11 -10 -9 -9 -9 -7 --------- Run | Yrd Mat Mat Sto Rec Fac Machines Accessed 26 | . 2 10 5 3 6 Terminals 22 | . 2 10 5 3 2 Fabricators 1 | . . . . . 1 Repair Stations 2 | . . . . . 2 Recycling Units . | . . . . . . Scanalyzers 1 | . . . . . 1 Garrison Access . | . . . . . . Total Hacks 76 | . 3 28 7 14 24 Successful 39 | . . 13 6 6 14 Failed 37 | . 3 15 1 8 10 Catastrophic 7 | . 1 3 . 1 2 Database Lockouts . | . . . . . . Manual 18 | . 1 9 1 3 4 Terminals 67 | . 3 28 7 14 15 Fabricators 2 | . . . . . 2 Repair Stations 5 | . . . . . 5 Recycling Units . | . . . . . . Scanalyzers 2 | . . . . . 2 Garrison Access . | . . . . . . Terminal Hacks 29 | . . 12 6 5 6 Record 1 | . . 1 . . . Part Schematic 3 | . . . . . 3 Open Door 3 | . . . 3 . . Level Access Points 1 | . . 1 . . . Branch Access Points 3 | . . 1 1 1 . Fabricator Index 1 | . . . . 1 . Alert Level 3 | . . 2 . 1 . Unreport Threat 4 | . . 2 . . 2 Recall Investigation 1 | . . . . 1 . Hauler Manifests 2 | . . 1 1 . . Registered Components 1 | . . 1 . . . Zone Layout 6 | . . 3 1 1 1 Fabricator Hacks 2 | . . . . . 2 Load Schematic 1 | . . . . . 1 Build 1 | . . . . . 1 Repair Station Hacks 4 | . . . . . 4 Scan Component 3 | . . . . . 3 Repair 1 | . . . . . 1 Recycling Unit Hacks . | . . . . . . Scanalyzer 2 | . . . . . 2 Insert Component 1 | . . . . . 1 Analyze 1 | . . . . . 1 Garrison Access Hacks . | . . . . . . Unauthorized Hacks 2 | . . 1 . 1 . Terminals 2 | . . 1 . 1 . Botnet 2 | . . 1 . 1 . Fabricators . | . . . . . . Repair Stations . | . . . . . . Recycling Units . | . . . . . . Scanalyzers . | . . . . . . Garrison Access . | . . . . . . Data Cores Recovered . | . . . . . . Used . | . . . . . . Hacking Detections 16 | . 2 7 1 3 3 Full Trace Events 7 | . 1 3 . 1 2 Feedback Events . | . . . . . . Feedback Blocked . | . . . . . . Robot Schematics Acquired . | . . . . . . Robots Built . | . . . . . . Authchips . | . . . . . . Time . | . . . . . . Total Robot Build Rating . | . . . . . . Part Schematics Acquired 4 | . . . . . 4 Parts Built 1 | . . . . . 1 Authchips 1 | . . . . . 1 Time 73 | . . . . . 73 Total Part Build Rating 3 | . . . . . 3 Parts Repaired 1 | . . . . . 1 Time 64 | . . . . . 64 Parts Recycled . | . . . . . . Recycled Matter . | . . . . . . Retrieved Matter . | . . . . . . Retrieved Components . | . . . . . . Parts Scanalyzed 1 | . . . . . 1 Part Schematics Acquired 1 | . . . . . 1 Parts Damaged 1 | . . . . . 1 Bothacking | -11 -10 -9 -9 -9 -7 ------------ Run | Yrd Mat Mat Sto Rec Fac Used RIF Installer . | . . . . . . Robots Hacked . | . . . . . . Non-combat . | . . . . . . Combat . | . . . . . . Robot Hacks Applied . | . . . . . . Relay Couplers Released . | . . . . . . Fabnet Peak Effective % . | . . . . . . Robots Rewired . | . . . . . . Allies Hacked . | . . . . . . Hacks Repelled . | . . . . . . Allies | -11 -10 -9 -9 -9 -7 -------- Run | Yrd Mat Mat Sto Rec Fac Total Allies . | . . . . . . Largest Group . | . . . . . . Highest-Rated Group . | . . . . . . Highest-Rated Ally . | . . . . . . Total Orders 2 | . . . . . 2 EXPLORE 2 | . . . . . 2 Ally Attacks . | . . . . . . Total Damage . | . . . . . . Kills . | . . . . . . Allies Corrupted . | . . . . . . Allies Melted . | . . . . . . Intel | -11 -10 -9 -9 -9 -7 ------- Run | Yrd Mat Mat Sto Rec Fac Robot Analysis Total . | . . . . . . Derelict Logs Recovered . | . . . . . . Drone Launches 2 | . . . . . 2 Drone Recoveries 2 | . . . . . 2 Exploration | -11 -10 -9 -9 -9 -7 ------------- Run | Yrd Mat Mat Sto Rec Fac Turns Passed 8325 | 61 608 3244 1076 1035 2301 Spaces Moved 2932 | 34 172 1180 365 398 783 Core 6 | 6 . . . . . Treads 2926 | 28 172 1180 365 398 783 Legs . | . . . . . . Wheels . | . . . . . . Hover . | . . . . . . Flight . | . . . . . . Fastest Speed 50 | 50 160 240 240 240 240 Average Speed 241 | 140 291 240 240 240 240 Slowest Speed 320 | 160 320 240 240 240 240 Overloaded Moves . | . . . . . . Propulsion Burnouts . | . . . . . . Robots Hopped . | . . . . . . Cave-ins Triggered . | . . . . . . Exploration Rate (%) 47 | 4 38 76 61 91 17 Regions Visited 5 Branch Regions 2 Pre-discovered Areas . | . . . . . . Known Exits Taken 2 | . . 1 1 . . Unknown Exits Taken 3 | 1 1 . . 1 . Scrap Searched . | . . . . . . Spaces Dug 4 | . . . . . 4 Terrain Destroyed 80 | . 36 9 23 2 10 Melee 4 | . . . . . 4 Projectile 6 | . . . 4 2 . AOE 70 | . 36 9 19 . 6 Terrain Rammed . | . . . . . . Walls Destroyed . | . . . . . . Machines Disabled . | . . . . . . Actions | -11 -10 -9 -9 -9 -7 --------- Run | Yrd Mat Mat Sto Rec Fac Total 3801 | 47 226 1429 514 462 1123 Wait 439 | . 9 79 79 41 231 Move 2927 | 33 171 1179 364 397 783 Hop . | . . . . . . Pick Up 105 | 8 10 44 15 7 21 Fast Attach . | . . . . . . Attach 36 | 6 2 13 1 1 13 Detach . | . . . . . . Swap 44 | . 4 13 12 . 15 Drop 62 | . 2 19 16 7 18 Fire 178 | . 28 82 27 9 32 Melee 7 | . . . . . 7 Ram . | . . . . . . Kick . | . . . . . . Crush 3 | . . . . . 3 Escape Stasis . | . . . . . . Rewire . | . . . . . . Trap . | . . . . . . Miscellaneous . | . . . . . . Route ------- -11/Scrapyard -10/Materials -9/Materials (discovered 5 exits: *Mat x3 / *Min / *Sto) -9/Storage (discovered 2 exits: *Mat / *Rec) -9/Recycling -7/Factory History --------- Turn | Location | Event 9 | -11/Scrapyard | Discovered new exit (range 14) 62 | -11/Scrapyard | Entered Materials 310 | -10/Materials | Build established: Mutant 571 | -10/Materials | Discovered new exit (range 14) 670 | -10/Materials | Entered another Materials area 670 | -9/Materials | Evolved 2 slots: Propulsion x1, Weapon x1 965 | -9/Materials | Build established: Tank 1337 | -9/Materials | Discovered new exit (range 15) 1540 | -9/Materials | Build established: Scavenger-Tank 1756 | -9/Materials | Identified exit to Materials 2144 | -9/Materials | Discovered new exit (range 15) 2367 | -9/Materials | Identified exit to Mines 2367 | -9/Materials | Identified exit to Storage 3914 | -9/Materials | Entered Storage 4040 | -9/Storage | Build established: Tank 4134 | -9/Storage | Found Prototype Launcher 4135 | -9/Storage | Identified Scatter Rocket Array 4326 | -9/Storage | Identified exit to Recycling 4522 | -9/Storage | Discovered exit to Materials (range 12) 4982 | -9/Storage | Used back door to open Recycling access 4990 | -9/Storage | Entered Recycling 4996 | -9/Recycling | Found Scrap Engine 5154 | -9/Recycling | Discovered new exit (range 15) 6025 | -9/Recycling | Entered Factory 6025 | -7/Factory | Evolved 4 slots: Power x1, Propulsion x1, Utility x2 6313 | -7/Factory | Repaired Broken Hvy. Ion Engine? 7501 | -7/Factory | Build established: Mutant 8130 | -7/Factory | Fabricated Hvy. Assault Cannon (x1) 8326 | -7/Factory | Self-destructed Last Messages --------------- 08143_ K-01 Serf cleans the Fabricator. 08160_ K-01 Serf collects debris. 08163_ K-01 Serf cleans the Matter Pump. 08172_ K-01 Serf collects debris. 08174_ K-01 Serf cleans the Matter Pump. 08177_ System corrupted: Matter fused (-5). 08242_ System corrupted: Matter fused (-6). 08263_ System corrupted: Matter fused (-5). 08287_ CRUB&CXPPV1TDY7MIA 08314_ ALERT: Suspicious activity at Terminal F001. Dispatching Investigation squad. 08314_ K-01 Serf cleans the Nuclear Reactor. 08320_ C-30 ARC bursts open, deploying its payload. 08320_ G-47 Trooper unfolds itself. 08322_ Huge Storage Unit destroyed. 08322_ Destroyed Huge Storage Unit. 08322_ K-01 Serf destroyed. Map ----- +----------------------------------------------------+ | ????????????????????????????????????????????????## | | ????????????????????????????????????????????????# | | ????????????????????????????????????????????????# | | ????????????????????????????????????????????????# | | ????????????????????????????????????????????????# | | ????????????????????????????????????????????????# | | ????????????????????????????????????????????????# | | ????????????????????????????????????????????????# | | ????????????????????????????????????????????????# | | ????????????????????????????????????????????????# | | ????????????????????????????????????????????????## | | ???????????????????#######????##############?????? | | ???????????????????# #????# #?????? | | ???????????????????# #????# #?????? | | ???????????????????# #????# #?##### | | ???????????????????# #????# #?# | | ???????????????????# #????# #?# "" | | ???????????????????# #????# #?# "T | | ??????############## ###### #?# "" | | ??????# # + # #?# | | ??????# # #### # ### ] | | ??????# # #??# # ## | | ??????# # #??# #?? ??## | | ??????# # #### # ?????# | | ??????# ## #### ## #######+############ | | ??????# # ]/@!]! u | | ??????# # ! ] | | ??????# ! !! T | | ??????# """] | | ??????# """ ! | | ??????# g g""" #####+########## | | ?????###########+## g *%= # #?# | | ?? *** """ # """ """ #?# | | ?? *** """ # """ """ #?# | | ?? % ** """ + """ """ #?# | | ??? # #?# | | ??? ! # """ """ #?# | | ????########### #######+### # """ """ #?# | | ??????????????# ## T # # """ """ #?# | | ??????????????# ## """ # # #?# | | ??????????????# ## """ # # ! ### | | ?????????##???# ## """ # + + | | ????????? #???# ## # # ### | | ????????? #???# ## """ # ##############?# | | ????????? #??## ## """ #^ ^ #??????????????# | | ????????? #### # """ #^^^ ^################ | | ????????? + # [ # | | ????????? #### ########## | | ????????? #??## | | ????????? #???# ######## """ | +----------------------------------------------------+ Best States ------------- Heat Dissipation 61 Energy Generation 23 Energy Capacity 460 Matter Stores 300 Matter Capacity 300 Sight Range 16 Terrain Scan Density 10 Armor Coverage 300 Evasion (%) 50 Recoil Reduction 4 Defensive Hacking 20 Authchip Count 5 Item Schematics ----------------- Imp. Cooling System | -7/Factory | Scanalyzed Huge Storage Unit | -7/Factory | Hacked Hvy. Assault Cannon | -7/Factory | Hacked Imp. Cryofiber Web | -7/Factory | Hacked Robot Schematics ------------------ None Fabricated ------------ Hvy. Assault Cannon | x1 | -7/Factory | Authchip Alien Tech Used ----------------- None Achievements -------------- None Challenges ------------ None Game ------ Seed DerelictBiocellSpoofer Manual? 0 Play Time 00:47:27 Cumulative 83.3 hours Start 2024.04.13 @ 15:46:17 End 2024.04.13 @ 16:32:23 Sessions 1 Manual Loads 0 Difficulty Rogue Special Mode None Game No. 96 Rogue 96 Adventurer 0 Explorer 0 Win Type - Total 1 Types 1/0/0/0/0/0/0/0/0 Lore% 42 Gallery% 46 Achievement% 43 Wizard Run 0 Options --------- Layout 1 ASCII 0 Keyboard 0 Movement Mouse Keybinds 0 Fullscreen 2 Font 32/Smallcaps Map View 50x40 Zoom Use 0% Tactical HUD 1 Map Filters NONE Filters NONE Steam 1 RUN: a606af70-03b0-4fb1-b6b7-b07c0391c85b